fUST/lending_fUST_20240705
["ID","MTS","AMOUNT","RATE_DAILY","PERIOD"]
[331217751,1720138232895,-1597.25650539,0.00014794,2]
[331217754,1720138232905,-2132.45671248,0.00014794,2]
[331217758,1720138232915,-4710.72024946,0.00014794,2]
[331217760,1720138232924,-582.23371105,0.00015,2]
[331217762,1720138232936,-258.70000001,0.00015,2]
[331217764,1720138232949,-1579.62405463,0.00015,2]
[331217766,1720138232959,-816.74514637,0.00015,2]
[331217915,1720138240038,-16.43580742,0.00015,2]
[331217917,1720138240049,-812.27576347,0.00019,3]
[331217919,1720138240059,-562.70017201,0.0002,2]
[331217921,1720138240069,-367.708206,0.00021096,2]
[331217923,1720138240078,-3000.0,0.00024188,2]
[331217925,1720138240088,-380.0,0.00024658,2]
[331217927,1720138240098,-880.48504348,0.00026265,2]
[331217928,1720138240107,-367.708206,0.00027195,2]
[331217929,1720138240116,-175.15240402,0.000274,2]
[331217930,1720138240125,-976.36,0.00029582,30]
[331217931,1720138240135,-150.0,0.00029582,7]
[331217932,1720138240145,-150.0,0.00029582,7]
[331217933,1720138240155,-200.0,0.00029582,7]
[331217934,1720138240165,-267.25,0.00029703,3]
[331217935,1720138240175,-14650.57,0.00029703,3]
[331217936,1720138240184,-70698.49031135,0.00029713,3]
[331217937,1720138240197,-15074.36376346,0.00029713,3]
[331217938,1720138240209,-530.76552842,0.00029713,3]
[331217939,1720138240225,-2584.38039677,0.00029713,3]
[331217940,1720138240236,-218.5,0.0003,14]
[331217941,1720138240246,-367.708206,0.00033295,2]
[331217942,1720138240257,-2655.71139723,0.00034688,4]
[331217943,1720138240269,-190.45613325,0.00034688,4]
[331217944,1720138240279,-2859.54386671,0.00034999,4]
[331217945,1720138240308,-6112.0,0.00034999,4]
[331218032,1720138245778,-4679.42261886,0.00034999,4]
[331218033,1720138245834,-56349.03351443,0.00034999,4]
[331218034,1720138245844,-11869.46648555,0.00034999,2]
[331218042,1720138245933,-914.16769087,0.00034999,2]
[331218055,1720138246074,-4973.63404781,0.00034999,2]
[331218060,1720138246087,-936.27422878,0.00034999,2]
[331218110,1720138246828,-261.81,0.00034999,2]
[331218111,1720138246921,-4365.01011654,0.00034999,2]
[331218565,1720138794654,-734.426975,0.00021096,2]
[331218566,1720138794688,-3000.0,0.00025677,2]
[331218567,1720138794724,-308.08603431,0.00025815,2]
[331218568,1720138794758,-588.66698491,0.000264,5]
[331218569,1720138794794,-150.0,0.000265,2]
[331218570,1720138794825,-250.0,0.00026684,2]
[331218571,1720138794935,-32163.1362464,0.00027184,2]
[331218572,1720138801600,-10513.14,0.00027174,3]
[331218573,1720138801633,-1262.35248124,0.00027184,2]
[331218574,1720138801667,-18674.51127236,0.00027184,2]
[331218575,1720138814017,-22225.49623484,0.00027184,2]
[331218584,1720139241155,-1908.73986261,0.00016155,2]
[331218585,1720139241176,-690.11892242,0.00016254,2]
[331218631,1720139432062,-16934.53294322,0.00016254,2]
[331218636,1720139432075,-1004.25000015,0.00016254,2]
[331218758,1720139439657,-38583.37155543,0.00016254,2]
[331218760,1720139439668,-163.75264255,0.00016254,2]
[331218762,1720139439678,-181.84215111,0.00016254,2]
[331218763,1720139439688,-154.80649189,0.00016254,2]
[331218764,1720139439698,-42225.49623484,0.00016255,2]
[331218765,1720139439707,-30000.0,0.00018899,2]
[331218766,1720139439717,-166.666666,0.0001945,2]
[331218767,1720139439727,-6076.9012323,0.00019701,2]
[331218768,1720139439742,-166.666666,0.0001998,2]
[331218769,1720139439752,-166.666666,0.0002051,2]
[331218770,1720139439762,-166.666666,0.0002104,2]
[331218771,1720139439772,-248.055522,0.00021096,2]
[331218772,1720139439782,-166.666666,0.00021571,2]
[331218773,1720139439792,-190.40802561,0.00022025,2]
[331218774,1720139439803,-166.666666,0.00022101,2]
[331218775,1720139439815,-17247.35351992,0.00022942,2]
[331218777,1720139439825,-151.08870453,0.00023182,2]
[331218779,1720139439836,-250.0,0.00023956,2]
[331218781,1720139439847,-157.840285,0.00023969,2]
[331218783,1720139439860,-153.40058179,0.0002407,2]
[331218785,1720139439871,-173.04695508,0.00025152,2]
[331218787,1720139439885,-2438.289989,0.00025232,3]
[331218789,1720139439899,-30027.14,0.00025232,3]
[331218792,1720139439909,-36032.57,0.00025242,3]
[331218794,1720139439920,-31739.36139483,0.00025252,2]
[331218795,1720139439930,-24900.0,0.00025262,2]
[331218798,1720139439941,-200.0,0.00025262,15]
[331218799,1720139439952,-4876.579978,0.00025491,3]
[331218801,1720139439963,-10647.20226167,0.00025501,2]
[331218804,1720139439974,-52100.0,0.00025501,2]
[331218805,1720139439984,-2438.289989,0.00025859,3]
[331218808,1720139439995,-153.40058179,0.00026424,2]
[331218809,1720139440008,-10957.59096739,0.00026619,3]
[331218812,1720139440019,-672.79461194,0.00027021,2]
[331218813,1720139440030,-2438.289989,0.00027174,3]
[331218816,1720139440040,-169.50434797,0.00027184,2]
[331218817,1720139440051,-362.8409251,0.00027184,2]
[331218819,1720139440061,-763.20349957,0.00027184,2]
[331218821,1720139440072,-427.95552057,0.00027184,2]
[331218823,1720139440082,-225.53884441,0.00027184,2]
[331218825,1720139440092,-4172.93378234,0.00027184,2]
[331218827,1720139440105,-221.53308225,0.00027184,2]
[331218829,1720139440116,-193.39153138,0.00027184,2]
[331218831,1720139440127,-10575.75912083,0.00027184,2]
[331218833,1720139440136,-734.426975,0.00027195,2]
[331218835,1720139440147,-248.055522,0.00027195,2]
[331218837,1720139440157,-340.0801,0.00027397,120]
[331218838,1720139440168,-10000.0,0.00028978,2]
[331218839,1720139440178,-164.21884047,0.00029041,2]
[331218840,1720139440193,-150.0,0.00029541,7]
[331218841,1720139440203,-150.0,0.00029541,7]
[331218842,1720139440213,-200.0,0.00029541,7]
[331218843,1720139440224,-9614.54817379,0.00029813,2]
[331218844,1720139440234,-9614.54817379,0.00029813,2]
[331218846,1720139440245,-154.83742071,0.00029903,2]
[331218848,1720139440256,-789.77698638,0.00029904,2]
[331218850,1720139440268,-6981.74793087,0.00029904,2]
[331218852,1720139440278,-173.65367609,0.00029904,2]
[331218853,1720139440287,-382.10663872,0.0003,30]
[331218855,1720139440297,-276.78106003,0.0003,4]
[331218857,1720139440307,-261.0,0.0003,2]
[331218859,1720139440317,-877.0,0.00030468,2]
[331218860,1720139440327,-150.90270475,0.00031006,7]
[331218862,1720139440337,-159.763434,0.00031155,2]
[331218864,1720139440346,-2438.289989,0.00031954,4]
[331218866,1720139440356,-340.0801,0.00031963,120]
[331218868,1720139440367,-166.45259493,0.0003295,4]
[331218870,1720139440376,-154.48428166,0.00033211,7]
[331218871,1720139440392,-734.426975,0.00033295,2]
[331218873,1720139440403,-248.055522,0.00033295,2]
[331218874,1720139440413,-877.0,0.00033468,2]
[331218876,1720139440423,-10000.0,0.00034195,3]
[331218878,1720139440434,-4215.82635272,0.0003455,2]
[331218879,1720139440444,-6329.18267681,0.00034562,4]
[331218881,1720139440455,-4497.15872289,0.00034562,7]
[331218883,1720139440465,-4136.19649619,0.00034563,4]
[331218884,1720139440475,-2316.77149531,0.00034642,4]
[331218886,1720139440485,-2438.289989,0.00034662,4]
[331218888,1720139440495,-2574.67694342,0.00034669,4]
[331218890,1720139440504,-3252.18893663,0.0003467,4]
[331218892,1720139440515,-2846.16753048,0.0003467,4]
[331218894,1720139440525,-2865.10498798,0.00034672,4]
[331218896,1720139440536,-1500.68511587,0.00034672,2]
[331218898,1720139440546,-1966.04116909,0.0003468,4]
[331218900,1720139440556,-4876.579978,0.00034889,4]
[331218902,1720139440569,-88888.0,0.00034899,5]
[331218904,1720139440582,-1927.27382098,0.00034899,4]
[331218906,1720139440595,-2196.18925821,0.00034899,4]
[331218909,1720139440608,-2196.18925821,0.00034899,4]
[331218911,1720139440621,-2146.02601492,0.00034899,14]
[331218913,1720139440636,-284.22260059,0.00034999,3]
[331218915,1720139440648,-27000.0,0.00034999,3]
[331218917,1720139440659,-471.22669351,0.00034999,4]
[331218919,1720139440670,-1313.3039651,0.00035292,4]
[331218922,1720139440682,-153.0,0.00035493,2]
[331218924,1720139440694,-153.0,0.00035493,2]
[331218926,1720139440706,-153.0,0.00035493,2]
[331218928,1720139440718,-153.0,0.00035493,2]
[331218930,1720139440734,-153.0,0.00035493,2]
[331218932,1720139440746,-164.21884047,0.000355,7]
[331218935,1720139440759,-2438.289989,0.00035571,4]
[331218936,1720139440772,-1484.11636857,0.00035999,4]
[331218937,1720139440783,-153.40058179,0.00036269,7]
[331218938,1720139440795,-877.0,0.00036468,2]
[331218939,1720139440809,-340.0801,0.0003653,120]
[331218940,1720139440823,-1181.29954537,0.00036732,4]
[331218941,1720139440837,-153.40058182,0.00036785,7]
[331218942,1720139440849,-154.82195475,0.00037,4]
[331218943,1720139440862,-1091.34939429,0.00037259,21]
[331218944,1720139440873,-642.76034266,0.00037587,4]
[331218945,1720139440887,-642.76034266,0.00037587,4]
[331218946,1720139440898,-264.86035899,0.00037899,2]
[331218947,1720139440909,-562.70017201,0.00037899,4]
[331218948,1720139440921,-659.62373504,0.00037999,2]
[331218949,1720139440933,-358.53020275,0.00038,120]
[331218950,1720139440946,-155.04434314,0.00038264,4]
[331218951,1720139440960,-170.30777189,0.00038264,4]
[331218952,1720139440973,-154.80649189,0.00038264,2]
[331218953,1720139440985,-150.28023279,0.00038363,7]
[331218954,1720139440998,-371.38573922,0.00038499,4]
[331218955,1720139441010,-435.0,0.00038499,2]
[331218956,1720139441021,-371.38573922,0.00038499,4]
[331218957,1720139441032,-215.09979109,0.00038499,4]
[331218958,1720139441043,-159.763434,0.00038781,2]
[331218959,1720139441055,-154.80649189,0.00038999,4]
[331218960,1720139441067,-360.4836904,0.00038999,4]
[331218961,1720139441079,-154.80649189,0.00038999,4]
[331218962,1720139441091,-509.97923553,0.00038999,4]
[331218963,1720139441106,-256.52887528,0.00038999,2]
[331218964,1720139441119,-154.80649189,0.00039167,4]
[331218965,1720139441142,-235.32952555,0.00039177,4]
[331218966,1720139441156,-154.80649189,0.00039393,10]
[331218967,1720139441167,-734.426975,0.00039394,2]
[331218968,1720139441181,-248.055522,0.00039394,2]
[331218969,1720139441194,-877.0,0.00039468,2]
[331218970,1720139441208,-3989.95425843,0.00039999,4]
[331218971,1720139441220,-164.81209326,0.00039999,4]
[331218972,1720139441233,-151.0,0.0004,120]
[331218973,1720139441245,-151.0,0.0004,120]
[331218974,1720139441255,-153.20820484,0.00040444,30]
[331218975,1720139441266,-154.48428166,0.00040754,30]
[331218976,1720139441276,-340.0801,0.00041096,120]
[331218977,1720139441286,-151.0,0.00041863,120]
[331218978,1720139441296,-150.90270476,0.00041993,30]
[331218979,1720139441307,-877.0,0.00042468,2]
[331218980,1720139441318,-153.20820484,0.00043222,30]
[331218981,1720139441330,-10000.0,0.00043316,4]
[331218982,1720139441342,-151.0,0.00043726,120]
[331218983,1720139441354,-734.426975,0.00045494,2]
[331218984,1720139441365,-248.055522,0.00045494,2]
[331218985,1720139441377,-151.0,0.00045589,120]
[331218986,1720139441389,-159.763434,0.00046407,2]
[331218987,1720139441399,-176.0,0.00047,90]
[331218988,1720139441410,-10000.0,0.00047239,4]
[331218989,1720139441420,-151.0,0.00047452,120]
[331218990,1720139441431,-156.0,0.00048,90]
[331218991,1720139441441,-176.0,0.00048904,90]
[331218992,1720139441452,-1298.52870603,0.00048989,62]
[331218993,1720139441464,-173.04695508,0.00049215,2]
[331218994,1720139441474,-14629.739934,0.00049305,6]
[331218995,1720139441484,-500.0,0.00049315,120]
[331218996,1720139441494,-500.0,0.00049315,120]
[331218997,1720139441504,-500.0,0.00049315,120]
[331218998,1720139441514,-500.0,0.00049315,120]
[331218999,1720139441525,-500.0,0.00049315,120]
[331219000,1720139441535,-500.0,0.00049315,60]
[331219001,1720139441545,-500.0,0.00049315,120]
[331219002,1720139441556,-500.0,0.00049315,120]
[331219003,1720139441566,-500.0,0.00049315,120]
[331219004,1720139441576,-500.0,0.00049315,120]
[331219005,1720139441586,-614.92457479,0.00049315,120]
[331219006,1720139441597,-500.0,0.00049315,120]
[331219007,1720139441608,-500.0,0.00049315,120]
[331219008,1720139441618,-500.53920741,0.00049315,120]
[331219009,1720139441629,-500.0,0.00049315,120]
[331219010,1720139441642,-500.0,0.00049315,120]
[331219011,1720139441653,-500.0,0.00049315,120]
[331219012,1720139441664,-500.0,0.00049315,120]
[331219013,1720139441675,-500.0,0.00049315,120]
[331219014,1720139441685,-500.0,0.00049315,120]
[331219015,1720139441695,-495.62845761,0.00049315,120]
[331219016,1720139441706,-500.0,0.00049315,120]
[331219017,1720139441716,-500.0,0.00049315,120]
[331219018,1720139441727,-500.0,0.00049315,120]
[331219019,1720139441738,-500.0,0.00049315,120]
[331219020,1720139441748,-506.40927252,0.00049315,120]
[331219021,1720139441759,-500.0,0.00049315,7]
[331219022,1720139441770,-500.0,0.00049315,120]
[331219023,1720139441780,-500.0,0.00049315,120]
[331219024,1720139441791,-500.0,0.00049315,120]
[331219025,1720139441801,-322.00160382,0.00049315,120]
[331219026,1720139441811,-500.0,0.00049315,120]
[331219027,1720139441822,-502.42472393,0.00049315,120]
[331219028,1720139441832,-500.0,0.00049315,120]
[331219029,1720139441843,-500.0,0.00049315,120]
[331219030,1720139441853,-531.20723779,0.00049315,120]
[331219031,1720139441864,-505.20988298,0.00049315,120]
[331219032,1720139441874,-500.0,0.00049315,120]
[331219033,1720139441888,-204.13933908,0.00049315,120]
[331219034,1720139441899,-500.0,0.00049315,120]
[331219035,1720139441909,-500.0,0.00049315,120]
[331219036,1720139441920,-500.0,0.00049315,120]
[331219037,1720139441931,-500.0,0.00049315,20]
[331219038,1720139441941,-500.0,0.00049315,120]
[331219039,1720139441952,-500.0,0.00049315,120]
[331219040,1720139441962,-502.3351056,0.00049315,120]
[331219041,1720139441973,-500.0,0.00049315,120]
[331219042,1720139441983,-500.0,0.00049315,120]
[331219043,1720139441993,-500.0,0.00049315,120]
[331219044,1720139442004,-500.0,0.00049315,120]
[331219045,1720139442014,-500.0,0.00049315,120]
[331219046,1720139442024,-500.0,0.00049315,120]
[331219047,1720139442035,-500.0,0.00049315,120]
[331219048,1720139442046,-500.0,0.00049315,120]
[331219049,1720139442056,-500.0,0.00049315,120]
[331219050,1720139442067,-500.0,0.00049315,120]
[331219051,1720139442077,-500.0,0.00049315,120]
[331219052,1720139442087,-550.69958915,0.00049315,120]
[331219053,1720139442098,-563.20368314,0.00049315,120]
[331219054,1720139442110,-452.32130888,0.00049315,120]
[331219055,1720139442122,-500.0,0.00049315,120]
[331219056,1720139442135,-501.75361061,0.00049315,120]
[331219057,1720139442146,-506.7560692,0.00049315,120]
[331219058,1720139442157,-240.8,0.00049315,7]
[331219059,1720139442167,-500.0,0.00049315,120]
[331219060,1720139442177,-500.0,0.00049315,120]
[331219061,1720139442187,-500.0,0.00049315,120]
[331219062,1720139442342,-500.0,0.00049315,120]
[331219063,1720139442353,-500.0,0.00049315,120]
[331219064,1720139442363,-511.80301093,0.00049315,120]
[331219065,1720139442372,-500.0,0.00049315,120]
[331219066,1720139442381,-500.0,0.00049315,120]
[331219067,1720139442396,-500.0,0.00049315,120]
[331219068,1720139442405,-500.0,0.00049315,120]
[331219069,1720139442415,-500.0,0.00049315,120]
[331219070,1720139442424,-500.0,0.00049315,120]
[331219071,1720139442434,-521.59494068,0.00049315,120]
[331219073,1720139442443,-500.0,0.00049315,120]
[331219075,1720139442451,-500.0,0.00049315,120]
[331219076,1720139442462,-535.52994753,0.00049315,120]
[331219077,1720139442471,-500.0,0.00049315,120]
[331219078,1720139442479,-500.0,0.00049315,120]
[331219079,1720139442488,-500.0,0.00049315,2]
[331219080,1720139442497,-500.0,0.00049315,120]
[331219081,1720139442507,-500.0,0.00049315,120]
[331219082,1720139442516,-500.0,0.00049315,120]
[331219083,1720139442525,-500.0,0.00049315,120]
[331219084,1720139442535,-500.0,0.00049315,120]
[331219085,1720139442544,-500.0,0.00049315,120]
[331219086,1720139442553,-2909.88,0.00049315,120]
[331219087,1720139442562,-564.93040162,0.00049315,120]
[331219088,1720139442571,-500.0,0.00049315,120]
[331219089,1720139442581,-500.0,0.00049315,120]
[331219090,1720139442590,-500.0,0.00049315,120]
[331219091,1720139442599,-502.42198833,0.00049315,120]
[331219092,1720139442609,-500.0,0.00049315,120]
[331219093,1720139442618,-279.28950152,0.00049315,120]
[331219094,1720139442628,-440.7201526,0.00049315,120]
[331219095,1720139442641,-500.0,0.00049315,120]
[331219096,1720139442650,-500.0,0.00049315,120]
[331219097,1720139442659,-500.0,0.00049315,120]
[331219098,1720139442669,-500.0,0.00049315,120]
[331219099,1720139442678,-500.0,0.00049315,120]
[331219100,1720139442687,-222.2160453,0.00049315,120]
[331219101,1720139442696,-500.0,0.00049315,120]
[331219102,1720139442705,-500.0,0.00049315,120]
[331219103,1720139442715,-639.82311533,0.00049315,120]
[331219104,1720139442725,-500.0,0.00049315,120]
[331219105,1720139442734,-500.0,0.00049315,120]
[331219106,1720139442744,-500.0,0.00049315,120]
[331219107,1720139442753,-500.0,0.00049315,120]
[331219108,1720139442762,-500.0,0.00049315,120]
[331219109,1720139442772,-583.56849178,0.00049315,120]
[331219110,1720139442781,-447.41067231,0.00049315,120]
[331219111,1720139442791,-500.0,0.00049315,120]
[331219112,1720139442800,-500.0,0.00049315,120]
[331219113,1720139442809,-500.0,0.00049315,120]
[331219114,1720139442818,-500.0,0.00049315,120]
[331219115,1720139442827,-500.0,0.00049315,120]
[331219116,1720139442837,-500.0,0.00049315,120]
[331219117,1720139442846,-500.0,0.00049315,120]
[331219118,1720139442855,-500.0,0.00049315,120]
[331219119,1720139442864,-500.0,0.00049315,120]
[331219120,1720139442873,-500.0,0.00049315,120]
[331219121,1720139442883,-500.0,0.00049315,120]
[331219122,1720139442897,-500.0,0.00049315,120]
[331219123,1720139442907,-500.0,0.00049315,120]
[331219124,1720139442916,-500.0,0.00049315,120]
[331219125,1720139442926,-500.0,0.00049315,120]
[331219126,1720139442936,-500.0,0.00049315,120]
[331219127,1720139442945,-500.0,0.00049315,120]
[331219128,1720139442954,-555.98858523,0.00049315,120]
[331219129,1720139442964,-500.0,0.00049315,120]
[331219130,1720139442973,-931.71,0.00049315,120]
[331219131,1720139442983,-931.71,0.00049315,120]
[331219132,1720139442992,-931.71,0.00049315,120]
[331219133,1720139443002,-931.71,0.00049315,120]
[331219134,1720139443011,-931.71,0.00049315,120]
[331219135,1720139443020,-931.71,0.00049315,120]
[331219136,1720139443030,-500.0,0.00049315,120]
[331219137,1720139443039,-931.71,0.00049315,120]
[331219138,1720139443048,-931.71,0.00049315,120]
[331219139,1720139443058,-931.71,0.00049315,120]
[331219140,1720139443067,-931.71,0.00049315,120]
[331219141,1720139443078,-931.71,0.00049315,120]
[331219142,1720139443087,-931.71,0.00049315,120]
[331219143,1720139443097,-931.71,0.00049315,120]
[331219144,1720139443113,-931.71,0.00049315,120]
[331219145,1720139443123,-931.71,0.00049315,120]
[331219146,1720139443132,-931.71,0.00049315,120]
[331219147,1720139443146,-931.71,0.00049315,120]
[331219148,1720139443155,-931.71,0.00049315,120]
[331219149,1720139443164,-931.71,0.00049315,120]
[331219150,1720139443173,-931.71,0.00049315,120]
[331219151,1720139443186,-931.71,0.00049315,120]
[331219152,1720139443196,-931.71,0.00049315,120]
[331219153,1720139443205,-931.71,0.00049315,120]
[331219154,1720139443215,-931.73174786,0.00049315,120]
[331219155,1720139443224,-500.0,0.00049315,120]
[331219156,1720139443233,-500.0,0.00049315,120]
[331219157,1720139443242,-503.97337733,0.00049315,120]
[331219158,1720139443251,-500.0,0.00049315,120]
[331219159,1720139443260,-500.0,0.00049315,120]
[331219160,1720139443269,-500.0,0.00049315,120]
[331219161,1720139443278,-500.0,0.00049315,120]
[331219162,1720139443287,-500.0,0.00049315,120]
[331219163,1720139443296,-500.0,0.00049315,120]
[331219164,1720139443305,-321.87657342,0.00049315,120]
[331219165,1720139443315,-500.0,0.00049315,120]
[331219166,1720139443324,-500.0,0.00049315,120]
[331219167,1720139443333,-500.0,0.00049315,120]
[331219168,1720139443343,-500.0,0.00049315,120]
[331219169,1720139443352,-500.0,0.00049315,120]
[331219170,1720139443361,-500.0,0.00049315,120]
[331219171,1720139443370,-500.0,0.00049315,120]
[331219172,1720139443380,-500.0,0.00049315,120]
[331219173,1720139443391,-500.0,0.00049315,120]
[331219174,1720139443400,-500.0,0.00049315,120]
[331219175,1720139443409,-500.0,0.00049315,120]
[331219176,1720139443418,-500.0,0.00049315,120]
[331219177,1720139443427,-500.0,0.00049315,120]
[331219178,1720139443436,-500.0,0.00049315,120]
[331219179,1720139443445,-500.0,0.00049315,120]
[331219180,1720139443455,-500.0,0.00049315,120]
[331219181,1720139443464,-500.0,0.00049315,120]
[331219182,1720139443473,-500.0,0.00049315,120]
[331219183,1720139443482,-363.19750204,0.00049315,120]
[331219184,1720139443491,-500.0,0.00049315,120]
[331219185,1720139443500,-230.64,0.00049315,120]
[331219186,1720139443509,-500.0,0.00049315,120]
[331219187,1720139443519,-500.0,0.00049315,120]
[331219188,1720139443529,-500.0,0.00049315,120]
[331219189,1720139443539,-500.0,0.00049315,120]
[331219190,1720139443548,-500.0,0.00049315,120]
[331219191,1720139443557,-500.0,0.00049315,120]
[331219192,1720139443566,-579.48305805,0.00049315,120]
[331219193,1720139443575,-500.0,0.00049315,120]
[331219194,1720139443584,-505.68958182,0.00049315,120]
[331219195,1720139443593,-500.0,0.00049315,120]
[331219196,1720139443602,-500.0,0.00049315,120]
[331219197,1720139443611,-500.0,0.00049315,120]
[331219198,1720139443620,-500.0,0.00049315,120]
[331219199,1720139443630,-500.0,0.00049315,120]
[331219200,1720139443640,-500.0,0.00049315,120]
[331219201,1720139443649,-500.0,0.00049315,120]
[331219202,1720139443658,-1175.38,0.00049315,120]
[331219203,1720139443667,-500.0,0.00049315,120]
[331219204,1720139443676,-633.99836362,0.00049315,120]
[331219205,1720139443685,-500.0,0.00049315,120]
[331219206,1720139443694,-500.0,0.00049315,120]
[331219207,1720139443703,-500.0,0.00049315,120]
[331219208,1720139443712,-500.0,0.00049315,120]
[331219209,1720139443722,-500.0,0.00049315,120]
[331219210,1720139443731,-598.33389675,0.00049315,120]
[331219211,1720139443744,-500.0,0.00049315,120]
[331219212,1720139443754,-500.0,0.00049315,120]
[331219213,1720139443764,-500.0,0.00049315,120]
[331219214,1720139443774,-500.0,0.00049315,120]
[331219215,1720139443783,-500.0,0.00049315,120]
[331219216,1720139443792,-500.0,0.00049315,120]
[331219217,1720139443802,-507.48932387,0.00049315,120]
[331219218,1720139443811,-500.0,0.00049315,120]
[331219219,1720139443820,-500.0,0.00049315,120]
[331219220,1720139443829,-500.0,0.00049315,120]
[331219221,1720139443839,-500.0,0.00049315,120]
[331219222,1720139443848,-500.0,0.00049315,120]
[331219223,1720139443858,-502.60484621,0.00049315,120]
[331219224,1720139443867,-500.0,0.00049315,120]
[331219225,1720139443877,-500.0,0.00049315,120]
[331219226,1720139443889,-500.0,0.00049315,120]
[331219227,1720139443898,-500.0,0.00049315,120]
[331219228,1720139443907,-500.0,0.00049315,120]
[331219229,1720139443916,-500.0,0.00049315,30]
[331219230,1720139443925,-500.0,0.00049315,120]
[331219231,1720139443934,-500.0,0.00049315,120]
[331219232,1720139443943,-500.0,0.00049315,120]
[331219233,1720139443953,-500.0,0.00049315,120]
[331219234,1720139443962,-500.0,0.00049315,120]
[331219235,1720139443971,-500.0,0.00049315,120]
[331219236,1720139443979,-1164.81,0.00049315,120]
[331219237,1720139443988,-500.0,0.00049315,120]
[331219238,1720139443997,-500.0,0.00049315,120]
[331219239,1720139444006,-500.0,0.00049315,120]
[331219240,1720139444015,-500.0,0.00049315,120]
[331219241,1720139444024,-500.0,0.00049315,120]
[331219242,1720139444033,-500.0,0.00049315,120]
[331219243,1720139444042,-500.0,0.00049315,120]
[331219244,1720139444052,-500.0,0.00049315,120]
[331219245,1720139444061,-500.0,0.00049315,120]
[331219247,1720139444071,-500.0,0.00049315,120]
[331219249,1720139444080,-500.0,0.00049315,120]
[331219251,1720139444089,-500.0,0.00049315,120]
[331219253,1720139444099,-345.21076198,0.00049315,10]
[331219255,1720139444111,-503.74065962,0.00049315,120]
[331219257,1720139444123,-500.0,0.00049315,120]
[331219259,1720139444132,-500.0,0.00049315,120]
[331219261,1720139444144,-500.0,0.00049315,120]
[331219263,1720139444154,-500.0,0.00049315,120]
[331219265,1720139444163,-500.0,0.00049315,120]
[331219267,1720139444172,-506.02831109,0.00049315,120]
[331219269,1720139444181,-500.0,0.00049315,120]
[331219271,1720139444190,-500.0,0.00049315,120]
[331219273,1720139444201,-500.0,0.00049315,120]
[331219274,1720139444210,-500.0,0.00049315,120]
[331219277,1720139444220,-212.79590257,0.00049315,120]
[331219278,1720139444229,-500.0,0.00049315,120]
[331219280,1720139444238,-500.0,0.00049315,120]
[331219282,1720139444247,-504.1655653,0.00049315,120]
[331219284,1720139444256,-500.0,0.00049315,120]
[331219286,1720139444265,-500.0,0.00049315,120]
[331219288,1720139444274,-500.0,0.00049315,120]
[331219290,1720139444283,-509.18546954,0.00049315,120]
[331219292,1720139444293,-503.19179824,0.00049315,120]
[331219293,1720139444302,-1016.72,0.00049315,120]
[331219294,1720139444311,-500.0,0.00049315,120]
[331219295,1720139444320,-500.0,0.00049315,120]
[331219296,1720139444329,-912.75,0.00049315,120]
[331219297,1720139444339,-500.0,0.00049315,120]
[331219298,1720139444348,-500.0,0.00049315,120]
[331219299,1720139444357,-500.0,0.00049315,120]
[331219301,1720139444366,-500.0,0.00049315,120]
[331219303,1720139444375,-500.0,0.00049315,120]
[331219305,1720139444384,-500.0,0.00049315,120]
[331219306,1720139444395,-509.64652439,0.00049315,120]
[331219307,1720139444404,-500.0,0.00049315,120]